fUSD/lending_fUSD_20240712
["ID","MTS","AMOUNT","RATE_DAILY","PERIOD"]
[331875729,1720809041676,-296428.44441231,0.00014,2]
[331875732,1720809041694,-759.61966762,0.00014,2]
[331875944,1720809043518,-302.87245613,0.00013988,2]
[331875946,1720809043529,-197.12754387,0.00013988,2]
[331875948,1720809043538,-500.0,0.00013989,2]
[331875950,1720809043547,-373.55855301,0.00013989,2]
[331875952,1720809043558,-126.44144699,0.00013989,2]
[331875954,1720809043569,-219.67022319,0.0001399,3]
[331875956,1720809043581,-451.88977681,0.0001399,3]
[331875958,1720809043590,-273.88727203,0.00014,2]
[331875960,1720809043601,-6612.77208028,0.00014,2]
[331875963,1720809043613,-3067.36856786,0.00014,2]
[331875968,1720809043652,-381.4185858,0.00014,2]
[331875970,1720809043663,-338083.61952888,0.00014,2]
[331875972,1720809043673,-523701.04251846,0.00014,2]
[331876058,1720809044942,-14791.05833248,0.00014,2]
[331876059,1720809044954,-814.55264413,0.00014,2]
[331876060,1720809044966,-6400.89541296,0.00014,2]
[331876061,1720809044977,-3248.22772491,0.00014,2]
[331876063,1720809045005,-19827.33002448,0.00014,2]
[331876065,1720809045016,-1732.275,0.00014,2]
[331876068,1720809045033,-382.12258582,0.00013988,2]
[331876070,1720809045045,-117.87741418,0.00013988,2]
[331876072,1720809045055,-249.81595157,0.00014,2]
[331876074,1720809045066,-21604.11922491,0.00014,2]
[331876088,1720809046579,-3941.16864385,0.00014,2]
[331876089,1720809046591,-1418.77048282,0.00014,2]
[331876090,1720809046602,-302.524,0.00014,2]
[331876091,1720809046614,-898.99522388,0.00014,2]
[331876092,1720809046709,-500.10126801,0.00014,2]
[331876093,1720809046721,-4211.80490799,0.00014,2]
[331876094,1720809046732,-516.8461897,0.00014,2]
[331876095,1720809046743,-286008.14692994,0.00014,2]
[331876096,1720809046847,-1067.09053749,0.00014,2]
[331876097,1720809046859,-4068.50721603,0.00014,2]
[331876098,1720809046870,-6248.55757461,0.00014,2]
[331876099,1720809046882,-583.72612072,0.00014,2]
[331876101,1720809046894,-666.5396195,0.00014,2]
[331876117,1720809131844,526.21994093,0.00027,120]
[331876118,1720809203413,3000.0,0.00025593,120]
[331876119,1720809223481,-3200.0,0.00014897,5]
[331876120,1720809223509,-200.0,0.00015,7]
[331876121,1720809223530,-200.0,0.00015,7]
[331876122,1720809223552,-200.0,0.00015,7]
[331876123,1720809223574,-200.0,0.00015,7]
[331876124,1720809223596,-200.0,0.00015,7]
[331876125,1720809223618,-3071.8639708,0.00015,14]
[331876126,1720809223640,-200.0,0.00015,7]
[331876127,1720809223666,-200.0,0.00015,7]
[331876128,1720809223688,-200.0,0.00015,7]
[331876129,1720809223712,-200.0,0.00015,7]
[331876130,1720809223734,-293.78291551,0.00015,7]
[331876131,1720809223756,-200.0,0.00015,7]
[331876132,1720809223791,-152.0,0.00015663,5]
[331876133,1720809223816,-150.25280741,0.00015868,5]
[331876134,1720809223837,-2786.33,0.00015869,7]
[331876135,1720809223859,-2786.33,0.00015869,7]
[331876136,1720809223882,-2786.33,0.00015869,7]
[331876137,1720809224062,-2786.33,0.00015869,7]
[331876138,1720809224086,-2685.58387568,0.00015978,5]
[331876139,1720809224110,-152.0,0.00016027,6]
[331876140,1720809224136,-2786.33,0.00016142,7]
[331876141,1720809224164,-2786.33,0.00016142,7]
[331876142,1720809224190,-152.0,0.0001639,7]
[331876143,1720809224213,-2786.33,0.00016415,7]
[331876144,1720809224237,-2786.33,0.00016415,7]
[331876145,1720809224265,-5570.0,0.00016463,7]
[331876146,1720809224301,-2786.33,0.00016689,7]
[331876147,1720809224335,-2786.33,0.00016689,7]
[331876148,1720809224362,-152.0,0.00016754,8]
[331876149,1720809224386,-2786.33,0.00016962,7]
[331876150,1720809224409,-2786.33,0.00016962,7]
[331876151,1720809224435,-152.0,0.00017118,9]
[331876152,1720809224460,-2786.33,0.00017235,7]
[331876153,1720809224484,-2786.33,0.00017235,7]
[331876154,1720809224510,-152.0,0.00017481,10]
[331876155,1720809224532,-1387.0,0.000175,5]
[331876156,1720809224556,-2786.33,0.00017508,7]
[331876157,1720809224579,-2786.33,0.00017508,7]
[331876158,1720809224602,-18140.70977084,0.00017642,7]
[331876159,1720809224625,-2786.33,0.00017781,7]
[331876160,1720809224646,-2786.33,0.00017781,7]
[331876161,1720809224668,-152.0,0.00017845,11]
[331876162,1720809224692,-5005.58772,0.00018,30]
[331876163,1720809224716,-1387.0,0.00018,5]
[331876164,1720809224738,-2786.33,0.00018055,7]
[331876165,1720809224763,-2786.33,0.00018055,7]
[331876166,1720809224787,-152.0,0.00018209,12]
[331876167,1720809224811,-2786.33,0.00018328,7]
[331876168,1720809224835,-2786.33,0.00018328,7]
[331876169,1720809224858,-1387.0,0.000185,6]
[331876170,1720809224882,-152.0,0.00018572,13]
[331876171,1720809224906,-2786.33,0.00018601,7]
[331876172,1720809224931,-2786.33,0.00018601,7]
[331876173,1720809224958,-950.61,0.00018849,30]
[331876174,1720809224986,-152.0,0.00018936,14]
[331876175,1720809225009,-185.67717531,0.00018936,5]
[331876176,1720809225033,-1387.0,0.00019,6]
[331876177,1720809225063,-1387.0,0.000195,7]
[331876178,1720809225087,-421682.43596721,0.0001992,7]
[331876179,1720809225110,-500.0,0.00019987,30]
[331876180,1720809225134,-339.81835002,0.0002,7]
[331876181,1720809225162,-1100.0,0.0002,5]
[331876182,1720809225184,-2000.0,0.0002,6]
[331876183,1720809225207,-2724.56713956,0.0002,7]
[331876184,1720809225229,-405.07,0.0002,10]
[331876185,1720809225254,-1387.0,0.0002,7]
[331876186,1720809225276,-469.018024,0.0002,30]
[331876187,1720809225300,-1000.0,0.000202,20]
[331876188,1720809225322,-1000.0,0.000202,20]
[331876189,1720809225346,-1000.0,0.000202,20]
[331876190,1720809225368,-1000.0,0.000202,20]
[331876191,1720809225391,-1000.0,0.000202,20]
[331876192,1720809225414,-1000.0,0.000202,20]
[331876193,1720809225438,-1000.0,0.000202,20]
[331876194,1720809225465,-1000.0,0.000202,20]
[331876195,1720809225490,-1000.0,0.000202,20]
[331876196,1720809225513,-1000.0,0.000202,20]
[331876197,1720809225536,-1000.0,0.000202,20]
[331876198,1720809225559,-1000.0,0.000202,20]
[331876199,1720809225581,-1000.0,0.000202,20]
[331876200,1720809225604,-1000.0,0.000202,20]
[331876201,1720809225629,-1000.0,0.000202,20]
[331876202,1720809225655,-1000.0,0.000202,20]
[331876203,1720809225680,-1000.0,0.000202,20]
[331876204,1720809225702,-1000.0,0.000202,20]
[331876205,1720809225726,-1000.0,0.000202,20]
[331876206,1720809225748,-1000.0,0.000202,20]
[331876207,1720809225773,-1000.0,0.000202,20]
[331876208,1720809225795,-457.56742708,0.000202,20]
[331876209,1720809225820,-1387.0,0.000205,8]
[331876210,1720809225844,-15245.3801277,0.00020888,10]
[331876211,1720809225867,-447.07826265,0.00021,5]
[331876212,1720809225890,-1387.0,0.00021,9]
[331876213,1720809225916,-1387.0,0.000215,9]
[331876214,1720809225941,-500.0,0.00021917,13]
[331876215,1720809225967,-520.0,0.00021918,13]
[331876216,1720809226000,-161.38593786,0.00022,30]
[331876217,1720809226023,-1800.0,0.00022,23]
[331876218,1720809226045,-52173.62782522,0.00022,14]
[331876219,1720809226069,-1100.0,0.00022,7]
[331876220,1720809226091,-150.37287788,0.00022,10]
[331876221,1720809226113,-1387.0,0.00022,10]
[331876222,1720809226135,-1387.0,0.000225,10]
[331876223,1720809226158,-11488.0,0.000225,5]
[331876224,1720809226180,-150.00000001,0.0002298,10]
[331876225,1720809226203,-1800.0,0.00023,24]
[331876226,1720809226228,-43130.60183228,0.00023,5]
[331876227,1720809226251,-1387.0,0.00023,11]
[331876228,1720809226277,-1387.0,0.000235,11]
[331876229,1720809226304,-950.61,0.00023831,30]
[331876230,1720809226328,-100779.0924346,0.00024,15]
[331876231,1720809226351,-123783.07728164,0.00024,15]
[331876232,1720809226373,-2161.73,0.00024,30]
[331876233,1720809226396,-1800.0,0.00024,25]
[331876234,1720809226419,-1387.0,0.00024,12]
[331876235,1720809226446,-1391.627966,0.000245,12]
[331876236,1720809226474,-1385.05,0.00024657,7]
[331876237,1720809226619,-1385.05,0.00024657,7]
[331876238,1720809226647,-1385.05,0.00024657,7]
[331876239,1720809226670,-1385.05,0.00024657,7]
[331876240,1720809226694,-1385.05,0.00024657,7]
[331876241,1720809226718,-1385.05,0.00024657,7]
[331876242,1720809226740,-1385.05,0.00024657,7]
[331876243,1720809226763,-1385.05,0.00024657,7]
[331876244,1720809226785,-1385.05,0.00024657,7]
[331876245,1720809226808,-1385.05,0.00024657,7]
[331876246,1720809226830,-1385.05,0.00024657,7]
[331876247,1720809226852,-1385.05,0.00024657,7]
[331876248,1720809226874,-1385.05,0.00024657,7]
[331876249,1720809226896,-1385.05,0.00024657,7]
[331876250,1720809226919,-1385.05,0.00024657,7]
[331876251,1720809226941,-1385.05,0.00024657,7]
[331876252,1720809226965,-1385.05,0.00024657,7]
[331876253,1720809226991,-1385.05,0.00024657,7]
[331876254,1720809227014,-1385.05,0.00024657,7]
[331876255,1720809227037,-1385.05,0.00024657,7]
[331876256,1720809227062,-1385.05,0.00024657,7]
[331876257,1720809227086,-1385.05,0.00024657,7]
[331876258,1720809227109,-1385.05,0.00024657,7]
[331876259,1720809227132,-1385.20852187,0.00024657,7]
[331876260,1720809227155,-10000.0,0.00024657,7]
[331876261,1720809227178,-10000.0,0.00024657,7]
[331876262,1720809227201,-1791.58030555,0.00024657,7]
[331876263,1720809227225,-1473.12,0.00024657,15]
[331876264,1720809227250,-1473.12,0.00024657,15]
[331876265,1720809227272,-1473.12,0.00024657,15]
[331876266,1720809227294,-1473.12,0.00024657,15]
[331876267,1720809227319,-1473.12,0.00024657,15]
[331876268,1720809227342,-1473.12,0.00024657,15]
[331876269,1720809227365,-1473.12,0.00024657,15]
[331876270,1720809227388,-1473.12,0.00024657,15]
[331876271,1720809227410,-1473.12,0.00024657,15]
[331876272,1720809227432,-1473.12,0.00024657,15]
[331876273,1720809227457,-1473.12,0.00024657,15]
[331876274,1720809227479,-1473.12,0.00024657,15]
[331876275,1720809227502,-1473.12,0.00024657,15]
[331876276,1720809227524,-1473.12,0.00024657,15]
[331876277,1720809227546,-1473.12,0.00024657,15]
[331876278,1720809227569,-1473.12,0.00024657,15]
[331876279,1720809227592,-1473.12,0.00024657,15]
[331876280,1720809227615,-1473.12,0.00024657,15]
[331876281,1720809227638,-1473.12,0.00024657,15]
[331876282,1720809227662,-1473.12,0.00024657,15]
[331876283,1720809227685,-1473.12,0.00024657,15]
[331876284,1720809227711,-1473.12,0.00024657,15]
[331876285,1720809227734,-1473.12,0.00024657,15]
[331876286,1720809227756,-1473.33098232,0.00024657,15]
[331876287,1720809227778,-151.0,0.00024658,7]
[331876288,1720809227800,-151.0,0.00024658,7]
[331876289,1720809227822,-151.0,0.00024658,7]
[331876290,1720809227847,-151.0,0.00024658,7]
[331876291,1720809227872,-151.0,0.00024658,7]
[331876292,1720809227894,-151.0,0.00024658,7]
[331876293,1720809227916,-151.0,0.00024658,7]
[331876294,1720809227940,-151.0,0.00024658,7]
[331876295,1720809227962,-151.0,0.00024658,7]
[331876296,1720809227988,-151.0,0.00024658,7]
[331876297,1720809228014,-151.0,0.00024658,7]
[331876298,1720809228038,-151.0,0.00024658,7]
[331876299,1720809228062,-151.0,0.00024658,7]
[331876300,1720809228085,-151.0,0.00024658,7]
[331876301,1720809228107,-267.920082,0.00024658,7]
[331876302,1720809228133,-500.0,0.00024987,31]
[331876303,1720809228156,-669.37886152,0.00025,30]
[331876304,1720809228178,-2110.0,0.00025,15]
[331876305,1720809228201,-1800.0,0.00025,26]
[331876306,1720809228225,-2683.8473864,0.00025,15]
[331876307,1720809228248,-767.5428087,0.00025,5]
[331876308,1720809228271,-333632.00819183,0.00025,10]
[331876309,1720809228295,-155.0,0.00025,7]
[331876310,1720809228323,-2110.0,0.000255,15]
[331876311,1720809228352,-1800.0,0.00026,27]
[331876312,1720809228375,-2110.0,0.00026,15]
[331876313,1720809228397,-1785.786615,0.00026,7]
[331876314,1720809228419,-1100.0,0.00026,26]
[331876315,1720809228441,-1800.0,0.00026,30]
[331876316,1720809228466,-988.35049455,0.00026,30]
[331876317,1720809228498,-153613.22,0.000261,7]
[331876318,1720809228526,-2110.0,0.000265,15]
[331876319,1720809228556,-1800.0,0.00027,28]
[331876320,1720809228579,-2110.0,0.00027,15]
[331876321,1720809228602,-454309.866061,0.00027,30]
[331876322,1720809317071,205.96668235,0.00011199,2]
[331876323,1720809392228,1691.31622099,0.00011199,2]
[331876324,1720809392255,17110.08610808,0.00011199,2]
[331876325,1720809393149,1368.31980329,0.00011199,2]
[331876326,1720809408214,150.0,0.00011199,2]
[331876327,1720809408235,150.0,0.00011199,2]
[331876328,1720809408256,150.0,0.00011199,2]
[331876329,1720809408276,150.0,0.00011199,2]
[331876330,1720809408297,150.0,0.00011199,2]
[331876331,1720809408317,219.77306564,0.00011199,2]
[331876332,1720809408338,150.0,0.00011199,2]
[331876333,1720809408362,17681.62926343,0.00011199,2]
[331876334,1720809409182,299.7771014,0.00011199,2]
[331876335,1720809501846,150.0,0.00011199,2]
[331876336,1720809501868,31.34063368,0.00011199,2]
[331876337,1720809524572,150.0,0.00011199,2]
[331876338,1720809524593,8.35076425,0.00011199,2]
[331876339,1720809574274,150.0,0.00011058,2]
[331876340,1720809574298,150.0,0.00011058,2]
[331876341,1720809574322,150.0,0.00011058,2]
[331876342,1720809574344,32.36,0.00011058,2]
[331876343,1720809574372,117.64,0.00011199,2]
[331876344,1720809574398,150.0,0.00011199,2]
[331876345,1720809574419,150.0,0.00011199,2]
[331876346,1720809574440,150.0,0.00011199,2]
[331876347,1720809574461,150.0,0.00011199,2]
[331876348,1720809574482,150.0,0.00011199,2]
[331876349,1720809574503,150.0,0.00011199,2]
[331876350,1720809574524,150.0,0.00011199,2]
[331876351,1720809574544,150.0,0.00011199,2]
[331876352,1720809574566,150.0,0.00011199,2]
[331876353,1720809574586,150.0,0.00011199,2]
[331876354,1720809574607,150.0,0.00011199,2]
[331876355,1720809574627,150.0,0.00011199,2]
[331876356,1720809574647,150.0,0.00011199,2]
[331876357,1720809574667,150.0,0.00011199,2]
[331876358,1720809574687,190.81746912,0.00011199,2]
[331876359,1720809574709,708.35461394,0.00011199,2]
[331876360,1720809580876,150.0,0.00011199,2]
[331876361,1720809580898,144.49848439,0.00011199,2]
[331876362,1720809644569,150.0,0.00011199,2]
[331876363,1720809644590,155.50151561,0.00011199,2]
[331876364,1720809644614,294.49848439,0.00011199,2]
[331876366,1720809723299,1055.11995837,0.00011199,2]
[331876367,1720809734518,150.0,0.00011199,2]
[331876368,1720809734539,150.0,0.00011199,2]
[331876369,1720809734731,150.0,0.00011199,2]
[331876370,1720809734752,150.0,0.00011199,2]
[331876371,1720809734772,150.0,0.00011199,2]
[331876372,1720809734792,150.0,0.00011199,2]
[331876373,1720809734814,150.0,0.00011199,2]
[331876374,1720809734834,150.0,0.00011199,2]
[331876375,1720809734856,150.0,0.00011199,2]
[331876376,1720809734878,150.0,0.00011199,2]
[331876377,1720809734898,150.0,0.00011199,2]
[331876378,1720809734920,22246.18702412,0.00011199,2]
[331876379,1720809766956,295.46908239,0.00011199,2]
[331876380,1720809804797,476.02603799,0.00011199,2]
[331876381,1720809810673,150.0,0.00011199,2]
[331876382,1720809810693,15.4084403,0.00011199,2]
[331876383,1720809845591,155.0,0.00011199,2]
[331876384,1720809875085,268.52355243,0.00011199,2]
[331876385,1720809879167,150.0,0.00011199,2]
[331876386,1720809879186,150.0,0.00011199,2]
[331876387,1720809879212,10.0,0.00011199,2]
[331876388,1720809892880,945.98897401,0.00011199,2]
[331876389,1720809907878,945.98897401,0.00011199,2]
[331876390,1720809916324,161.28077976,0.00011199,2]
[331876391,1720809928432,201.94529503,0.00011199,2]
[331876392,1720809952624,150.0,0.00011199,2]
[331876393,1720809952646,150.0,0.00011199,2]
[331876394,1720809952669,150.0,0.00011199,2]
[331876396,1720809958407,150.0,0.00011199,2]
[331876397,1720809958430,150.0,0.00011199,2]
[331876398,1720809958450,222.64626467,0.00011199,2]
[331876399,1720809958471,2584.75220922,0.00011199,2]
[331876400,1720809962596,4678.48721517,0.00011199,2]
[331876401,1720809962969,200.26652504,0.00011143,2]
[331876402,1720809968413,313.82233916,0.00011199,2]
[331876403,1720810025414,1266.16665698,0.00011199,2]
[331876404,1720810026506,414.10059507,0.00011199,2]
[331876405,1720810034408,247.44455726,0.00011199,2]
[331876407,1720810046656,600.0,0.00011199,2]
[331876408,1720810109917,353.52219708,0.00011199,2]
[331876409,1720810111363,495.37,0.00010911,2]
[331876410,1720810127220,217.90540753,0.00011199,2]
[331876411,1720810141040,155.08707796,0.00011199,2]
[331876412,1720810144474,200.50684621,0.00011199,2]
[331876414,1720810185751,155.46196403,0.00011199,2]
[331876426,1720810234299,-176.30734159,0.00012273,2]
[331876427,1720810234309,-204.71326199,0.00012273,2]
[331876428,1720810234319,-155.63539479,0.00012273,2]
[331876429,1720810234328,-222.42400185,0.00012528,2]
[331876430,1720810234404,-27.57599815,0.00012528,2]
[331876431,1720810234413,-219.52,0.00012875,2]
[331876432,1720810234423,-250.0,0.00012959,2]
[331876433,1720810234432,-1250.0,0.00013,2]
[331876434,1720810234442,-179.48,0.00013009,2]
[331876435,1720810234451,-1000.0,0.0001307,2]
[331876436,1720810234461,-495.37,0.00013175,2]
[331876437,1720810234470,-2426.05400185,0.00013448,2]
[331876438,1720810234509,-690.94599815,0.00013448,2]
[331876439,1720810234518,-150.99,0.00013472,2]
[331876440,1720810234527,-14555.43460796,0.00013472,2]
[331876441,1720810234536,-227.32181018,0.00013543,2]
[331876442,1720810234545,-530.85773798,0.00013543,2]
[331876443,1720810234555,-960.62707526,0.00013574,2]
[331876444,1720810234565,-245.0,0.00013574,2]
[331876445,1720810234574,-1366.85701667,0.00013574,2]
[331876446,1720810234583,-1559.38557531,0.00013574,2]
[331876450,1720810234594,-856.26166783,0.00013574,2]
[331876451,1720810234764,-777.82664874,0.00013574,2]
[331876452,1720810234796,-1261.05591509,0.00013574,2]
[331876453,1720810234806,-194.6,0.00013699,2]
[331876454,1720810234815,-3271.13086808,0.00013719,2]
[331876455,1720810234824,-789.45308619,0.00013759,2]
[331876456,1720810234833,-208.75515,0.0001386,2]
[331876457,1720810234842,-1137.27169451,0.0001388,2]
[331876458,1720810234852,-313.04695809,0.00013899,2]
[331876459,1720810234860,-158.56926775,0.00013899,2]
[331876460,1720810234872,-358.99851866,0.000139,2]
[331876461,1720810234881,-615.80679238,0.000139,2]
[331876462,1720810234890,-169.84462217,0.000139,2]
[331876463,1720810234903,-301.1935717,0.000139,2]
[331876464,1720810234911,-150.0,0.00013911,2]
[331876465,1720810234920,-1137.2716945,0.00013911,2]
[331876466,1720810234929,-1137.2716945,0.00013943,2]
[331876467,1720810234938,-19014.533772,0.0001397,2]
[331876468,1720810234947,-301.19357159,0.00013971,2]
[331876469,1720810234957,-2000.0,0.00013973,3]
[331876470,1720810234966,-1137.2716945,0.00013974,2]
[331876471,1720810234975,-500.0,0.00013977,2]
[331876472,1720810234984,-500.0,0.00013977,2]
[331876473,1720810234993,-500.0,0.00013977,2]
[331876474,1720810235002,-500.0,0.00013977,2]
[331876475,1720810235011,-500.0,0.00013977,2]
[331876476,1720810235020,-500.0,0.00013977,2]
[331876477,1720810235029,-500.0,0.00013977,2]
[331876478,1720810235039,-500.0,0.00013977,2]
[331876479,1720810235048,-500.0,0.00013977,2]
[331876480,1720810235057,-500.0,0.00013977,2]
[331876481,1720810235066,-500.0,0.00013977,2]
[331876482,1720810235076,-500.0,0.00013977,2]
[331876483,1720810235085,-500.0,0.00013977,2]
[331876484,1720810235094,-500.0,0.00013977,2]
[331876485,1720810235103,-500.0,0.00013977,2]
[331876486,1720810235112,-500.0,0.00013977,2]
[331876487,1720810235123,-500.0,0.00013977,2]
[331876488,1720810235132,-500.0,0.00013977,2]
[331876489,1720810235141,-500.0,0.00013977,2]
[331876490,1720810235150,-500.0,0.00013977,2]
[331876491,1720810235160,-500.0,0.00013977,2]
[331876492,1720810235168,-500.0,0.00013977,2]
[331876493,1720810235178,-500.0,0.00013977,2]
[331876494,1720810235187,-500.0,0.00013977,2]
[331876495,1720810235196,-500.0,0.00013977,2]
[331876496,1720810235205,-369.55164455,0.00013977,2]
[331876497,1720810235217,-130.44835545,0.00013977,2]
[331876498,1720810235226,-500.0,0.00013977,2]
[331876499,1720810235235,-159.71073417,0.00013977,2]
[331876504,1720810239697,-563.08926583,0.00013977,2]
[331876505,1720810239706,-500.0,0.00013977,2]
[331876506,1720810239715,-500.0,0.00013977,2]
[331876507,1720810239725,-500.0,0.00013977,2]
[331876508,1720810239734,-596.86,0.00013977,2]
[331876509,1720810239743,-500.0,0.00013977,2]
[331876510,1720810239752,-500.0,0.00013977,2]
[331876511,1720810239761,-500.0,0.00013977,2]
[331876512,1720810239770,-506.01,0.00013977,2]
[331876513,1720810239780,-500.0,0.00013977,2]
[331876514,1720810239789,-500.0,0.00013977,2]
[331876515,1720810239798,-500.0,0.00013977,2]
[331876516,1720810239808,-500.0,0.00013977,2]
[331876517,1720810239817,-500.0,0.00013977,2]
[331876518,1720810239826,-833.45,0.00013977,2]
[331876519,1720810239836,-500.0,0.00013977,2]
[331876520,1720810239845,-500.0,0.00013977,2]
[331876521,1720810239855,-500.0,0.00013977,2]
[331876522,1720810239864,-500.0,0.00013977,2]
[331876523,1720810239874,-500.0,0.00013977,2]
[331876524,1720810239883,-500.0,0.00013977,2]
[331876525,1720810239892,-500.0,0.00013977,2]
[331876526,1720810239901,-500.0,0.00013977,2]
[331876527,1720810239911,-535.65,0.00013977,2]
[331876528,1720810239920,-500.0,0.00013977,2]
[331876529,1720810239929,-500.0,0.00013977,2]
[331876530,1720810239938,-500.0,0.00013977,2]
[331876531,1720810239947,-500.0,0.00013977,2]
[331876532,1720810239956,-500.0,0.00013977,2]
[331876533,1720810239966,-589.17346214,0.00013977,2]
[331876534,1720810239975,-500.0,0.00013977,2]
[331876535,1720810239985,-524.73,0.00013977,2]
[331876536,1720810239994,-588.79,0.00013977,2]
[331876537,1720810240004,-500.0,0.00013977,2]
[331876538,1720810240013,-500.0,0.00013977,2]
[331876539,1720810240023,-500.0,0.00013977,2]
[331876540,1720810240032,-500.0,0.00013977,2]
[331876541,1720810240041,-500.0,0.00013977,2]
[331876542,1720810240051,-500.0,0.00013977,2]
[331876543,1720810240060,-500.0,0.00013977,2]
[331876544,1720810240070,-500.0,0.00013977,2]
[331876545,1720810240080,-500.0,0.00013977,2]
[331876546,1720810240090,-500.0,0.00013977,2]
[331876547,1720810240099,-560.1,0.00013977,2]
[331876549,1720810240109,-500.0,0.00013977,2]
[331876551,1720810240118,-500.0,0.00013977,2]
[331876553,1720810240129,-500.0,0.00013977,2]
[331876555,1720810240138,-500.0,0.00013977,2]
[331876557,1720810240149,-500.0,0.00013977,2]
[331876559,1720810240158,-500.0,0.00013977,2]
[331876561,1720810240168,-973.28,0.00013977,2]
[331876563,1720810240178,-500.0,0.00013977,2]
[331876565,1720810240187,-500.0,0.00013977,2]
[331876567,1720810240196,-500.0,0.00013977,2]
[331876569,1720810240206,-500.0,0.00013977,2]
[331876571,1720810240215,-500.0,0.00013977,2]
[331876573,1720810240224,-500.0,0.00013977,2]
[331876574,1720810240233,-500.0,0.00013977,2]
[331876576,1720810240242,-500.0,0.00013977,2]
[331876578,1720810240252,-500.0,0.00013977,2]
[331876580,1720810240261,-251.81924521,0.00013977,2]
[331876582,1720810240270,-500.0,0.00013977,2]
[331876584,1720810240279,-607.64,0.00013977,2]
[331876586,1720810240289,-500.0,0.00013977,2]
[331876588,1720810240301,-500.0,0.00013977,2]
[331876590,1720810240311,-500.0,0.00013977,2]
[331876592,1720810240320,-374.18634372,0.00013977,2]
[331876594,1720810240330,-661.62,0.00013977,2]
[331876596,1720810240341,-500.0,0.00013977,2]
[331876598,1720810240350,-500.0,0.00013977,2]
[331876600,1720810240359,-500.0,0.00013977,2]
[331876602,1720810240368,-615.63,0.00013977,2]
[331876604,1720810240380,-500.0,0.00013977,2]
[331876606,1720810240390,-30898.6173795,0.00013978,2]
[331876609,1720810240399,-267.1,0.00013978,2]
[331876612,1720810240408,-500.0,0.00013979,2]
[331876615,1720810240417,-500.0,0.00013979,2]
[331876618,1720810240427,-500.0,0.00013979,2]
[331876620,1720810240436,-500.0,0.00013979,2]
[331876621,1720810240445,-500.0,0.00013979,2]
[331876623,1720810240454,-500.0,0.00013979,2]
[331876625,1720810240464,-500.0,0.00013979,2]
[331876627,1720810240474,-500.0,0.00013979,2]
[331876629,1720810240483,-500.0,0.00013979,2]
[331876631,1720810240491,-500.0,0.00013979,2]
[331876633,1720810240501,-500.0,0.00013979,2]
[331876635,1720810240510,-500.0,0.00013979,2]
[331876637,1720810240519,-500.0,0.00013979,2]
[331876639,1720810240528,-315.94138051,0.00013979,2]
[331876641,1720810240537,-644.84,0.00013979,2]
[331876643,1720810240546,-500.0,0.00013979,2]
[331876645,1720810240555,-500.0,0.00013979,2]
[331876647,1720810240564,-500.0,0.00013979,2]
[331876649,1720810240574,-500.0,0.00013979,2]
[331876651,1720810240583,-500.0,0.00013979,2]
[331876653,1720810240592,-500.0,0.00013979,2]
[331876655,1720810240601,-500.0,0.00013979,2]